fUSD/lending_fUSD_20260413
["ID","MTS","AMOUNT","RATE_DAILY","PERIOD"]
[420397832,1776081057397,-500.4975,0.000331,2]
[420397833,1776081057419,-500.670346,0.00033136,5]
[420397834,1776081057432,-212.24021888,0.00033149,2]
[420397835,1776081057442,-508.0,0.00033237,8]
[420397836,1776081057459,-44060.13,0.000333,7]
[420397837,1776081057471,-500.0,0.00033479,120]
[420397838,1776081057482,-204.42,0.00033479,120]
[420397839,1776081057495,-478.75,0.000336,60]
[420397840,1776081057516,-2466.84,0.000339,30]
[420397841,1776081057620,-549.1065,0.000339,2]
[420397842,1776081057630,-2730.0,0.00033933,30]
[420397843,1776081057651,-2712.0,0.00033933,30]
[420397844,1776081057661,-1263.0,0.00033969,30]
[420397845,1776081057671,-161.0,0.00033969,30]
[420397846,1776081057697,-657.50579672,0.00033994,14]
[420397847,1776081057713,-200.0,0.00034,120]
[420397848,1776081057753,-538.63,0.000341,120]
[420397849,1776081057765,-814.28,0.000341,120]
[420397850,1776081057806,-1523.5,0.000341,120]
[420397851,1776081057823,-512.408399,0.00034136,120]
[420397852,1776081057843,-7597.1,0.0003415,2]
[420397853,1776081057859,-300.0,0.00034166,2]
[420397854,1776081057872,-900.0,0.00034169,2]
[420397855,1776081057887,-150.0,0.00034181,2]
[420397856,1776081057898,-150.0,0.00034257,7]
[420397857,1776081057916,-150.0,0.00034257,30]
[420397858,1776081057926,-500.0,0.00034329,120]
[420397859,1776081057943,-204.42,0.00034329,120]
[420397860,1776081057958,-260.64,0.0003438,30]
[420397861,1776081057992,-173.0,0.000344,120]
[420397862,1776081058004,-4200.0,0.00034463,7]
[420397863,1776081058027,-500.0,0.00034539,60]
[420397864,1776081058044,-500.0,0.00034539,60]
[420397865,1776081058063,-500.0,0.00034539,60]
[420397866,1776081058105,-500.0,0.00034539,60]
[420397867,1776081058121,-965.653924,0.00034539,60]
[420397868,1776081058133,-500.0,0.00034539,60]
[420397869,1776081058155,-784.6561785,0.00034539,60]
[420397870,1776081058166,-500.0,0.00034539,60]
[420397871,1776081058182,-500.0,0.00034539,60]
[420397872,1776081058199,-500.0,0.00034539,60]
[420397873,1776081058219,-500.0,0.00034539,60]
[420397874,1776081058234,-500.0,0.00034539,60]
[420397875,1776081058245,-529.4540911,0.00034539,60]
[420397876,1776081058259,-500.0,0.00034539,60]
[420397877,1776081058281,-507.2245768,0.00034539,60]
[420397878,1776081058293,-602.8753775,0.00034539,60]
[420397879,1776081058314,-500.0,0.00034539,60]
[420397880,1776081058325,-585.7614512,0.00034539,60]
[420397881,1776081058353,-500.0,0.00034539,60]
[420397882,1776081058362,-500.0,0.00034539,60]
[420397883,1776081058371,-500.0,0.00034539,60]
[420397884,1776081058384,-500.0,0.00034539,60]
[420397885,1776081058408,-838.9965571,0.00034539,60]
[420397886,1776081058418,-499.0549219,0.00034539,60]
[420397887,1776081058432,-398.1859842,0.00034539,60]
[420397888,1776081058449,-500.0,0.00034539,60]
[420397889,1776081058479,-500.0,0.00034539,60]
[420397890,1776081058489,-500.0,0.00034539,60]
[420397891,1776081058506,-777.5356118,0.00034539,60]
[420397892,1776081058531,-44060.13,0.000346,7]
[420397893,1776081058540,-602.4364,0.000347,2]
[420397894,1776081058554,-1600.0,0.00034736,120]
[420397895,1776081058565,-1500.0,0.00034795,2]
[420397896,1776081058574,-541.38218884,0.0003488,120]
[420397897,1776081058584,-210.0,0.0003488,30]
[420397898,1776081058602,-2730.0,0.00034933,30]
[420397899,1776081058613,-2712.0,0.00034933,30]
[420397900,1776081058624,-1263.0,0.00034969,30]
[420397901,1776081058634,-164.49393955,0.00034969,30]
[420397902,1776081058657,-7000.0,0.00035,4]
[420397903,1776081058669,-10035.95122175,0.00035,10]
[420397904,1776081058680,-150.0,0.00035,2]
[420397905,1776081058712,-500.0,0.00035,14]
[420397906,1776081058727,-500.0,0.00035,14]
[420397907,1776081058746,-500.0,0.00035,14]
[420397908,1776081058762,-500.0,0.00035,14]
[420397909,1776081058782,-500.0,0.00035,14]
[420397910,1776081058801,-500.0,0.00035,14]
[420397911,1776081058848,-500.0,0.00035,14]
[420397912,1776081058863,-500.0,0.00035,14]
[420397913,1776081058907,-500.0,0.00035,14]
[420397914,1776081058919,-500.0,0.00035,14]
[420397915,1776081058930,-500.0,0.00035,14]
[420397916,1776081058939,-500.0,0.00035,14]
[420397917,1776081058955,-500.0,0.00035,14]
[420397918,1776081058969,-500.0,0.00035,14]
[420397919,1776081058979,-500.0,0.00035,14]
[420397920,1776081058999,-500.0,0.00035,14]
[420397921,1776081059009,-500.0,0.00035,14]
[420397922,1776081059034,-500.0,0.00035,14]
[420397923,1776081059046,-500.0,0.00035,14]
[420397924,1776081059072,-500.0,0.00035,14]
[420397925,1776081059084,-500.0,0.00035,14]
[420397926,1776081059093,-500.0,0.00035,14]
[420397927,1776081059122,-500.0,0.00035,14]
[420397928,1776081059132,-500.0,0.00035,14]
[420397929,1776081059142,-500.0,0.00035,14]
[420397930,1776081059155,-500.0,0.00035,14]
[420397931,1776081059170,-500.0,0.00035,14]
[420397932,1776081059183,-202.7,0.00035,14]
[420397933,1776081059192,-3000000.0,0.00035,45]
[420397934,1776081059225,-540.67,0.00035,2]
[420397935,1776081059234,-2000.0,0.00035004,2]
[420397936,1776081059246,-500.0,0.00035014,5]
[420397937,1776081059261,-152.0,0.00035046,5]
[420397938,1776081059283,-3799.64,0.00035062,30]
[420397939,1776081059294,-500.0,0.00035068,120]
[420397940,1776081059308,-204.42,0.00035068,120]
[420397941,1776081059322,-291.08,0.000351,90]
[420397942,1776081059348,-478.75,0.000351,90]
[420397943,1776081059362,-150.0,0.00035144,7]
[420397944,1776081059379,-508.0,0.0003527,10]
[420397945,1776081059390,-6453.0,0.00035282,3]
[420397946,1776081059402,-151.0,0.0003538,120]
[420397947,1776081059414,-660.9459,0.000355,2]
[420397948,1776081059427,-2466.84,0.000356,30]
[420397949,1776081059438,-752.30258994,0.0003561,2]
[420397950,1776081059466,-7597.1,0.00035681,5]
[420397951,1776081059477,-540.67,0.0003578,5]
[420397952,1776081059487,-558.07,0.00035818,120]
[420397953,1776081059504,-152.0,0.00035872,7]
[420397954,1776081059514,-152.0,0.00035872,7]
[420397955,1776081059526,-152.0,0.00035872,7]
[420397956,1776081059542,-152.0,0.00035872,7]
[420397957,1776081059573,-152.0,0.00035872,7]
[420397958,1776081059583,-152.0,0.00035872,7]
[420397959,1776081059592,-152.0,0.00035872,7]
[420397960,1776081059620,-500.0,0.0003589,120]
[420397961,1776081059631,-204.42,0.0003589,120]
[420397962,1776081059642,-2730.0,0.00035933,30]
[420397963,1776081059664,-2712.0,0.00035933,30]
[420397964,1776081059676,-1263.0,0.00035969,30]
[420397965,1776081059686,-1009.0,0.00036,120]
[420397966,1776081059732,-444.20446771,0.00036,7]
[420397967,1776081059742,-200.0,0.00036,120]
[420397968,1776081059763,-380.87,0.00036,90]
[420397969,1776081059781,-176.35,0.00036013,10]
[420397970,1776081059795,-44060.13,0.000361,7]
[420397971,1776081059807,-1000.0,0.0003611,5]
[420397972,1776081059824,-81895.18531745,0.0003613,3]
[420397973,1776081059853,-25000.0,0.00036199,10]
[420397974,1776081059863,-725.1378,0.000363,2]
[420397975,1776081059880,-573.93854517,0.00036319,70]
[420397976,1776081059896,-477.38640864,0.000365,5]
[420397977,1776081059906,-478.75,0.000365,90]
[420397978,1776081059924,-10000.0,0.00036531,2]
[420397979,1776081059950,-540.67,0.0003657,7]
[420397980,1776081059974,-25000.0,0.00036602,10]
[420397981,1776081059983,-500.0,0.00036712,120]
[420397982,1776081059999,-204.42,0.00036712,120]
[420397983,1776081060010,-210.0,0.0003689,30]
[420397984,1776081060020,-2730.0,0.00036933,30]
[420397985,1776081060030,-2712.0,0.00036933,30]
[420397986,1776081060045,-1263.0,0.00036969,30]
[420397987,1776081060055,-2466.84,0.00037,30]
[420397988,1776081060069,-2000.0,0.00037,30]
[420397989,1776081060079,-395.0,0.00037,120]
[420397990,1776081060091,-313.0,0.00037,120]
[420397991,1776081060102,-795.5642,0.00037,2]
[420397992,1776081060119,-1574.0,0.00037067,11]
[420397993,1776081060130,-1100.0,0.00037151,7]
[420397994,1776081060145,-229.225741,0.000372,120]
[420397995,1776081060160,-1466.22110958,0.00037205,5]
[420397996,1776081060170,-7597.1,0.00037212,7]
[420397997,1776081060182,-2257.8,0.00037273,30]
[420397998,1776081060202,-2798.39,0.00037273,30]
[420397999,1776081060213,-508.0,0.00037303,13]
[420398000,1776081060223,-321.0,0.0003733,11]
[420398001,1776081060240,-605.7,0.00037334,7]
[420398002,1776081060253,-540.67,0.0003735,45]
[420398003,1776081060264,-44060.13,0.000374,7]
[420398004,1776081060283,-1326.87802065,0.00037434,7]
[420398005,1776081060294,-152.95343507,0.00037434,7]
[420398006,1776081060306,-500.0,0.00037534,120]
[420398007,1776081060533,-204.42,0.00037534,120]
[420398008,1776081060544,-1100.0,0.00037604,7]
[420398009,1776081060564,-150.0,0.0003762,7]
[420398010,1776081060577,-395.0,0.0003762,30]
[420398011,1776081060589,-395.0,0.0003762,30]
[420398012,1776081060820,-313.0,0.0003762,30]
[420398013,1776081060830,-152.0,0.00037685,6]
[420398014,1776081060843,-162.0,0.00037716,11]
[420398015,1776081060857,-6699.69607962,0.000378,120]
[420398016,1776081060867,-872.8305,0.000378,2]
[420398017,1776081060880,-160.261479,0.0003781,30]
[420398018,1776081060890,-160.261479,0.0003781,30]
[420398019,1776081060902,-160.26,0.0003781,30]
[420398020,1776081060911,-4712.31048003,0.00037824,30]
[420398021,1776081060926,-23942.85948446,0.0003788,120]
[420398022,1776081060945,-1574.0,0.00037905,11]
[420398023,1776081060955,-2730.0,0.00037933,30]
[420398024,1776081060985,-2712.0,0.00037933,30]
[420398025,1776081060995,-150.0,0.00037955,7]
[420398026,1776081061018,-1263.0,0.00037969,30]
[420398027,1776081061028,-2000.0,0.00038,3]
[420398028,1776081061039,-678.47885077,0.00038,30]
[420398029,1776081061055,-137405.95,0.00038,7]
[420398030,1776081061068,-350.0,0.00038,120]
[420398031,1776081061079,-30000.0,0.00038,15]
[420398032,1776081061095,-1000.0,0.00038,30]
[420398033,1776081061111,-120000.0,0.00038,120]
[420398034,1776081061121,-160.0,0.00038,120]
[420398035,1776081061131,-854.96504665,0.00038,120]
[420398036,1776081061147,-50000.0,0.00038,120]
[420398037,1776081061156,-500.0,0.00038,120]
[420398038,1776081061169,-500.0,0.00038,120]
[420398039,1776081061183,-200.0,0.00038,120]
[420398040,1776081061205,-395.0,0.00038,120]
[420398041,1776081061215,-313.0,0.00038,120]
[420398042,1776081061226,-2077.62,0.00038034,30]
[420398043,1776081061246,-1100.0,0.00038058,7]
[420398044,1776081061258,-259.46079196,0.000381,33]
[420398045,1776081061267,-260.66400523,0.000381,33]
[420398046,1776081061278,-18013.0742294,0.000381,33]
[420398047,1776081061301,-540.67,0.0003813,54]
[420398048,1776081061311,-200.0,0.0003815,120]
[420398049,1776081061322,-167.02,0.000382,15]
[420398050,1776081061337,-1000.0,0.000383,120]
[420398051,1776081061347,-1000.0,0.000383,120]
[420398052,1776081061356,-1000.0,0.00038356,14]
[420398053,1776081061368,-1000.0,0.00038356,14]
[420398054,1776081061380,-1000.0,0.00038356,14]
[420398055,1776081061390,-1000.0,0.00038356,14]
[420398056,1776081061399,-1000.0,0.00038356,14]
[420398057,1776081061412,-1000.0,0.00038356,14]
[420398058,1776081061423,-1000.0,0.00038356,14]
[420398059,1776081061438,-1000.0,0.00038356,14]
[420398060,1776081061447,-1000.0,0.00038356,14]
[420398061,1776081061457,-1000.0,0.00038356,14]
[420398062,1776081061467,-1000.0,0.00038356,14]
[420398063,1776081061481,-1080.3868436,0.00038356,14]
[420398064,1776081061490,-24485.3531934,0.00038356,120]
[420398065,1776081061502,-500.0,0.00038356,120]
[420398066,1776081061515,-836.45,0.00038356,2]
[420398067,1776081061525,-836.45,0.00038356,2]
[420398068,1776081061535,-836.45,0.00038356,2]
[420398069,1776081061546,-836.45,0.00038356,2]
[420398070,1776081061555,-836.45,0.00038356,2]
[420398071,1776081061570,-836.45,0.00038356,2]
[420398072,1776081061579,-836.45,0.00038356,2]
[420398073,1776081061593,-836.45,0.00038356,2]
[420398074,1776081061606,-836.45,0.00038356,2]
[420398075,1776081061622,-836.45,0.00038356,2]
[420398076,1776081061632,-836.45,0.00038356,2]
[420398077,1776081061642,-836.45,0.00038356,2]
[420398078,1776081061656,-836.45,0.00038356,2]
[420398079,1776081061669,-836.45,0.00038356,2]
[420398080,1776081061679,-836.45,0.00038356,2]
[420398081,1776081061690,-836.45,0.00038356,2]
[420398082,1776081061709,-836.45,0.00038356,2]
[420398083,1776081061718,-836.45,0.00038356,2]
[420398084,1776081061731,-836.45,0.00038356,2]
[420398085,1776081061746,-836.45,0.00038356,2]
[420398086,1776081061757,-836.45,0.00038356,2]
[420398087,1776081061777,-836.45,0.00038356,2]
[420398088,1776081061789,-836.45,0.00038356,2]
[420398089,1776081061802,-836.49591478,0.00038356,2]
[420398090,1776081061817,-500.3855881,0.00038356,2]
[420398091,1776081061827,-500.0,0.00038356,2]
[420398092,1776081061838,-500.0,0.00038356,2]
[420398093,1776081061850,-500.0,0.00038356,2]
[420398094,1776081061863,-500.0,0.00038356,2]
[420398095,1776081061874,-500.0,0.00038356,2]
[420398096,1776081061883,-500.0,0.00038356,2]
[420398097,1776081061894,-500.0,0.00038356,2]
[420398098,1776081061908,-500.0,0.00038356,2]
[420398099,1776081061921,-500.0,0.00038356,2]
[420398100,1776081061932,-500.0,0.00038356,2]
[420398101,1776081061956,-500.0,0.00038356,2]
[420398102,1776081061966,-500.0,0.00038356,2]
[420398103,1776081061975,-500.0,0.00038356,2]
[420398104,1776081061986,-500.0,0.00038356,2]
[420398105,1776081062007,-500.0,0.00038356,2]
[420398106,1776081062016,-500.0,0.00038356,2]
[420398107,1776081062025,-500.0,0.00038356,2]
[420398108,1776081062051,-313.38145964,0.00038356,2]
[420398109,1776081062060,-204.42,0.00038356,120]
[420398110,1776081062069,-500.0,0.00038356,2]
[420398111,1776081062094,-500.0,0.00038356,2]
[420398112,1776081062103,-273.33971186,0.00038356,2]
[420398113,1776081062115,-300.0,0.00038356,2]
[420398114,1776081062127,-300.0,0.00038356,2]
[420398115,1776081062136,-300.0,0.00038356,2]
[420398116,1776081062154,-300.0,0.00038356,2]
[420398117,1776081062164,-300.0,0.00038356,2]
[420398118,1776081062173,-300.0,0.00038356,2]
[420398119,1776081062186,-300.0,0.00038356,2]
[420398120,1776081062198,-300.0,0.00038356,2]
[420398121,1776081062207,-300.0,0.00038356,2]
[420398122,1776081062216,-443.11753229,0.00038356,2]
[420398123,1776081062226,-500.0,0.00038356,2]
[420398124,1776081062239,-500.0,0.00038356,2]
[420398125,1776081062248,-500.0,0.00038356,2]
[420398126,1776081062258,-500.0,0.00038356,2]
[420398127,1776081062272,-500.0,0.00038356,2]
[420398128,1776081062282,-500.0,0.00038356,2]
[420398129,1776081062291,-500.0,0.00038356,2]
[420398130,1776081062301,-500.0,0.00038356,2]
[420398131,1776081062311,-500.0,0.00038356,2]
[420398132,1776081062325,-500.0,0.00038356,2]
[420398133,1776081062335,-500.0,0.00038356,2]
[420398134,1776081062344,-500.0,0.00038356,2]
[420398135,1776081062353,-395.49452083,0.00038356,2]
[420398136,1776081062366,-216.20097661,0.00038356,120]
[420398137,1776081062378,-151.0,0.00038356,30]
[420398138,1776081062387,-151.0,0.00038356,30]
[420398139,1776081062404,-151.0,0.00038356,30]
[420398140,1776081062413,-151.0,0.00038356,30]
[420398141,1776081062430,-151.122334,0.00038356,30]
[420398142,1776081062440,-313.167379,0.00038356,7]
[420398143,1776081062453,-313.167379,0.00038356,7]
[420398144,1776081062468,-313.167379,0.00038356,7]
[420398145,1776081062488,-313.167379,0.00038356,7]
[420398146,1776081062497,-313.167379,0.00038356,7]
[420398147,1776081062512,-313.167379,0.00038356,7]
[420398148,1776081062536,-313.167379,0.00038356,7]
[420398149,1776081062555,-313.167379,0.00038356,7]
[420398150,1776081062566,-313.167379,0.00038356,7]
[420398151,1776081062575,-313.167379,0.00038356,7]
[420398152,1776081062586,-313.167379,0.00038356,7]
[420398153,1776081062603,-313.167379,0.00038356,7]
[420398154,1776081062613,-313.167379,0.00038356,7]
[420398155,1776081062622,-313.167379,0.00038356,7]
[420398156,1776081062634,-313.167379,0.00038356,7]
[420398157,1776081062653,-313.167379,0.00038356,7]
[420398158,1776081062662,-313.167379,0.00038356,7]
[420398159,1776081062683,-313.167379,0.00038356,7]
[420398160,1776081062692,-313.167379,0.00038356,7]
[420398161,1776081062702,-313.16738,0.00038356,7]
[420398162,1776081062723,-151.0,0.00038356,30]
[420398163,1776081062733,-151.0,0.00038356,30]
[420398164,1776081062747,-151.0,0.00038356,30]
[420398165,1776081062764,-151.0,0.00038356,30]
[420398166,1776081062778,-151.0,0.00038356,30]
[420398167,1776081062789,-151.0,0.00038356,30]
[420398168,1776081062821,-151.0,0.00038356,30]
[420398169,1776081062848,-151.0,0.00038356,30]
[420398170,1776081062861,-204.230658,0.00038356,30]
[420398171,1776081062877,-151.0,0.00038356,30]
[420398172,1776081062932,-151.0,0.00038356,30]
[420398173,1776081062957,-151.0,0.00038356,30]
[420398174,1776081062969,-151.0,0.00038356,30]
[420398175,1776081063011,-151.0,0.00038356,30]
[420398176,1776081063021,-151.0,0.00038356,30]
[420398177,1776081063050,-151.0,0.00038356,30]
[420398178,1776081063059,-151.0,0.00038356,30]
[420398179,1776081063072,-151.0,0.00038356,30]
[420398180,1776081063091,-292.617285,0.00038356,30]
[420398181,1776081063100,-153.952564,0.00038356,30]
[420398182,1776081063109,-151.0,0.00038356,2]
[420398183,1776081063128,-151.0,0.00038356,2]
[420398184,1776081063144,-151.0,0.00038356,2]
[420398185,1776081063154,-151.0,0.00038356,2]
[420398186,1776081063165,-151.0,0.00038356,2]
[420398187,1776081063178,-151.0,0.00038356,2]
[420398188,1776081063188,-151.0,0.00038356,2]
[420398189,1776081063198,-151.0,0.00038356,2]
[420398190,1776081063210,-151.0,0.00038356,2]
[420398191,1776081063223,-151.0,0.00038356,2]
[420398192,1776081063233,-209.324896,0.00038356,2]
[420398193,1776081063245,-151.0,0.00038356,30]
[420398194,1776081063254,-151.0,0.00038356,30]
[420398195,1776081063268,-151.0,0.00038356,30]
[420398196,1776081063283,-151.0,0.00038356,30]
[420398197,1776081063295,-151.0,0.00038356,30]
[420398198,1776081063307,-220.668421,0.00038356,30]
[420398199,1776081063328,-151.0,0.00038356,30]
[420398200,1776081063337,-151.0,0.00038356,30]
[420398201,1776081063347,-151.0,0.00038356,30]
[420398202,1776081063369,-151.0,0.00038356,30]
[420398203,1776081063401,-151.0,0.00038356,30]
[420398204,1776081063426,-151.0,0.00038356,30]
[420398205,1776081063441,-151.0,0.00038356,30]
[420398206,1776081063478,-151.0,0.00038356,30]
[420398207,1776081063490,-151.0,0.00038356,30]
[420398208,1776081063537,-151.0,0.00038356,30]
[420398209,1776081063547,-151.0,0.00038356,30]
[420398210,1776081063573,-258.529576,0.00038356,30]
[420398211,1776081063595,-151.0,0.00038356,30]
[420398212,1776081063607,-151.0,0.00038356,30]
[420398213,1776081063627,-478.118864,0.00038356,30]
[420398214,1776081063639,-151.0,0.00038356,30]
[420398215,1776081063652,-478.118864,0.00038356,30]
[420398216,1776081063672,-151.0,0.00038356,30]
[420398217,1776081063683,-478.118864,0.00038356,30]
[420398218,1776081063708,-151.0,0.00038356,30]
[420398219,1776081063721,-478.118864,0.00038356,30]
[420398220,1776081063731,-151.0,0.00038356,30]
[420398221,1776081063749,-478.118864,0.00038356,30]
[420398222,1776081063763,-151.0,0.00038356,30]
[420398223,1776081063773,-478.118864,0.00038356,30]
[420398224,1776081063790,-151.0,0.00038356,30]
[420398225,1776081063801,-151.0,0.00038356,30]
[420398226,1776081063816,-478.118864,0.00038356,30]
[420398227,1776081063833,-151.0,0.00038356,30]
[420398228,1776081063853,-151.0,0.00038356,30]
[420398229,1776081063873,-478.118864,0.00038356,30]
[420398230,1776081063883,-151.0,0.00038356,30]
[420398231,1776081063901,-151.0,0.00038356,30]
[420398232,1776081063918,-151.0,0.00038356,30]
[420398233,1776081063929,-151.0,0.00038356,30]
[420398234,1776081063952,-478.118864,0.00038356,30]
[420398235,1776081063962,-151.0,0.00038356,30]
[420398236,1776081063972,-151.0,0.00038356,30]
[420398237,1776081063993,-151.0,0.00038356,30]
[420398238,1776081064004,-478.118864,0.00038356,30]
[420398239,1776081064014,-151.0,0.00038356,30]
[420398240,1776081064030,-151.0,0.00038356,30]
[420398241,1776081064046,-151.0,0.00038356,30]
[420398242,1776081064059,-478.118864,0.00038356,30]
[420398243,1776081064084,-161.757425,0.00038356,30]
[420398244,1776081064126,-151.0,0.00038356,30]
[420398245,1776081064143,-151.0,0.00038356,30]
[420398246,1776081064167,-478.118864,0.00038356,30]
[420398247,1776081064180,-151.0,0.00038356,30]
[420398248,1776081064239,-151.0,0.00038356,30]
[420398249,1776081064258,-478.118864,0.00038356,30]
[420398250,1776081064270,-151.0,0.00038356,30]
[420398251,1776081064355,-151.0,0.00038356,30]
[420398252,1776081064449,-219.982399,0.00038356,30]
[420398253,1776081064483,-478.118864,0.00038356,30]
[420398254,1776081064494,-151.0,0.00038356,30]
[420398255,1776081064520,-151.0,0.00038356,30]
[420398256,1776081064531,-478.118864,0.00038356,30]
[420398257,1776081064541,-151.0,0.00038356,30]
[420398258,1776081064556,-151.0,0.00038356,30]
[420398259,1776081064573,-478.118864,0.00038356,30]
[420398260,1776081064583,-151.0,0.00038356,30]
[420398261,1776081064593,-151.0,0.00038356,30]
[420398262,1776081064603,-478.118864,0.00038356,30]
[420398263,1776081064620,-151.0,0.00038356,30]
[420398264,1776081064753,-151.0,0.00038356,30]
[420398265,1776081064784,-478.118864,0.00038356,30]
[420398266,1776081064812,-151.0,0.00038356,30]
[420398267,1776081064821,-478.118864,0.00038356,30]
[420398268,1776081064831,-151.0,0.00038356,30]
[420398269,1776081064875,-198.216556,0.00038356,30]
[420398270,1776081064894,-478.118868,0.00038356,30]
[420398271,1776081064904,-198.216556,0.00038356,30]
[420398272,1776081064924,-151.0,0.00038356,30]
[420398273,1776081064934,-198.216556,0.00038356,30]
[420398274,1776081064943,-221.938433,0.00038356,30]
[420398275,1776081064954,-198.216556,0.00038356,30]
[420398276,1776081064971,-198.216556,0.00038356,30]
[420398277,1776081064989,-198.216556,0.00038356,30]
[420398278,1776081065002,-198.216556,0.00038356,30]
[420398279,1776081065012,-198.216556,0.00038356,30]
[420398280,1776081065031,-198.216556,0.00038356,30]
[420398281,1776081065043,-183.996217,0.00038356,30]
[420398282,1776081065053,-198.216556,0.00038356,30]
[420398283,1776081065072,-198.216556,0.00038356,30]
[420398284,1776081065082,-198.216556,0.00038356,30]
[420398285,1776081065106,-212.372834,0.00038356,30]
[420398286,1776081065116,-198.216556,0.00038356,30]
[420398287,1776081065127,-212.372834,0.00038356,30]
[420398288,1776081065140,-198.216556,0.00038356,30]
[420398289,1776081065152,-212.372834,0.00038356,30]
[420398290,1776081065161,-198.216556,0.00038356,30]
[420398291,1776081065172,-212.372834,0.00038356,30]
[420398292,1776081065184,-212.372834,0.00038356,30]
[420398293,1776081065195,-198.216556,0.00038356,30]
[420398294,1776081065205,-212.372834,0.00038356,30]
[420398295,1776081065218,-198.216556,0.00038356,30]
[420398296,1776081065227,-212.372834,0.00038356,30]
[420398297,1776081065238,-198.216556,0.00038356,30]
[420398298,1776081065248,-212.372834,0.00038356,30]
[420398299,1776081065257,-198.216556,0.00038356,30]
[420398300,1776081065271,-212.372834,0.00038356,30]
[420398301,1776081065284,-198.216556,0.00038356,30]
[420398302,1776081065294,-212.372834,0.00038356,30]
[420398303,1776081065303,-212.372834,0.00038356,30]
[420398304,1776081065315,-212.372834,0.00038356,30]
[420398305,1776081065328,-212.372834,0.00038356,30]
[420398306,1776081065339,-212.372834,0.00038356,30]
[420398307,1776081065348,-212.372834,0.00038356,30]
[420398308,1776081065360,-212.372834,0.00038356,30]
[420398309,1776081065378,-212.372834,0.00038356,30]
[420398310,1776081065388,-212.372834,0.00038356,30]
[420398311,1776081065398,-212.372834,0.00038356,30]
[420398312,1776081065411,-212.372831,0.00038356,30]
[420398313,1776081065425,-151.0,0.00038356,30]
[420398314,1776081065434,-151.0,0.00038356,30]
[420398315,1776081065445,-151.0,0.00038356,30]
[420398316,1776081065458,-151.0,0.00038356,30]
[420398317,1776081065472,-166.1,0.00038356,30]
[420398318,1776081065482,-151.0,0.00038356,30]
[420398319,1776081065508,-166.1,0.00038356,30]
[420398320,1776081065522,-151.0,0.00038356,30]
[420398321,1776081065531,-166.1,0.00038356,30]
[420398322,1776081065552,-151.0,0.00038356,30]
[420398323,1776081065583,-166.1,0.00038356,30]
[420398324,1776081065593,-151.0,0.00038356,30]
[420398325,1776081065607,-166.1,0.00038356,30]
[420398326,1776081065626,-151.0,0.00038356,30]
[420398327,1776081065636,-166.1,0.00038356,30]
[420398328,1776081065659,-151.0,0.00038356,30]
[420398329,1776081065671,-166.1,0.00038356,30]
[420398330,1776081065680,-151.0,0.00038356,30]
[420398331,1776081065692,-166.1,0.00038356,30]